fUSD/lending_fUSD_20260506
["ID","MTS","AMOUNT","RATE_DAILY","PERIOD"]
[421733659,1778076646000,-2501.3232,0.00015,2]
[421733657,1778076646000,-11729.99999986,0.00015,2]
[421733653,1778076646000,-902.28638058,0.00015,2]
[421733654,1778076646000,-1343.81581292,0.00015,2]
[421733658,1778076646000,-114.43573852,0.00015,2]
[421733748,1778076649000,177.779058,0.00026852,120]
[421733750,1778076820000,102.42346014,0.00012744,2]
[421733751,1778076904000,167.0,0.00027308,120]
[421733752,1778077276000,-66.31653986,0.00012744,2]
[421733753,1778077598000,-166.66,0.00014168,2]
[421733754,1778077598000,-127.77985293,0.00014466,2]
[421733755,1778077805000,333.0,0.0002963,120]
[421733789,1778077832000,-500.0,0.00014598,2]
[421733790,1778077832000,-500.0,0.00014598,2]
[421733791,1778077832000,-500.0,0.00014598,2]
[421733785,1778077832000,-322.93312068,0.00014598,2]
[421733787,1778077832000,-500.0,0.00014598,2]
[421733786,1778077832000,-168.61199935,0.00014598,2]
[421733782,1778077832000,-500.0,0.00014513,2]
[421733792,1778077832000,-500.0,0.00014598,2]
[421733794,1778077832000,-373.96271672,0.00014598,2]
[421733795,1778077832000,-500.0,0.00014598,2]
[421733796,1778077832000,-500.0,0.00014598,2]
[421733800,1778077832000,-500.0,0.00014598,2]
[421733798,1778077832000,-500.0,0.00014598,2]
[421733788,1778077832000,-433.24442335,0.00014598,2]
[421733793,1778077832000,-500.0,0.00014598,2]
[421733775,1778077832000,-718.20351415,0.00014499,2]
[421733781,1778077832000,-200.0,0.000145,2]
[421733766,1778077832000,-250.0,0.00014,2]
[421733767,1778077832000,-10.99829995,0.00014205,2]
[421733768,1778077832000,-2442.96961911,0.00014205,2]
[421733769,1778077832000,-46.03208094,0.00014205,2]
[421733801,1778077832000,-500.0,0.00014598,2]
[421733771,1778077832000,-38.88014707,0.00014466,2]
[421733773,1778077832000,-1200.0,0.00014498,2]
[421733772,1778077832000,-262.0,0.00014498,2]
[421733770,1778077832000,-185.4906939,0.00014367,2]
[421733774,1778077832000,-300.0,0.00014498,2]
[421733776,1778077832000,-6075.17598585,0.00014499,2]
[421733777,1778077832000,-298.8309,0.00014499,2]
[421733778,1778077832000,-390.8482959,0.00014499,2]
[421733779,1778077832000,-896.33955273,0.00014499,2]
[421733780,1778077832000,-715.2623208,0.00014499,2]
[421733783,1778077832000,-5438.41,0.00014513,2]
[421733799,1778077832000,-500.0,0.00014598,2]
[421733784,1778077832000,-173.97,0.00014513,2]
[421733797,1778077832000,-500.0,0.00014598,2]
[421733819,1778077832000,-500.0,0.00014598,2]
[421733823,1778077832000,-500.0,0.00014598,2]
[421733825,1778077832000,-500.0,0.00014598,2]
[421733831,1778077832000,-500.0,0.00014598,2]
[421733829,1778077832000,-500.0,0.00014598,2]
[421733826,1778077832000,-500.0,0.00014598,2]
[421733827,1778077832000,-500.0,0.00014598,2]
[421733830,1778077832000,-500.0,0.00014598,2]
[421733828,1778077832000,-500.0,0.00014598,2]
[421733832,1778077832000,-500.0,0.00014598,2]
[421733834,1778077832000,-500.0,0.00014598,2]
[421733833,1778077832000,-500.0,0.00014598,2]
[421733835,1778077832000,-500.0,0.00014598,2]
[421733836,1778077832000,-500.0,0.00014598,2]
[421733802,1778077832000,-500.0,0.00014598,2]
[421733814,1778077832000,-500.0,0.00014598,2]
[421733818,1778077832000,-500.0,0.00014598,2]
[421733824,1778077832000,-500.0,0.00014598,2]
[421733822,1778077832000,-500.0,0.00014598,2]
[421733804,1778077832000,-500.0,0.00014598,2]
[421733803,1778077832000,-500.0,0.00014598,2]
[421733808,1778077832000,-500.0,0.00014598,2]
[421733812,1778077832000,-500.0,0.00014598,2]
[421733807,1778077832000,-385.19691134,0.00014598,2]
[421733816,1778077832000,-500.0,0.00014598,2]
[421733805,1778077832000,-500.0,0.00014598,2]
[421733810,1778077832000,-500.0,0.00014598,2]
[421733806,1778077832000,-500.0,0.00014598,2]
[421733809,1778077832000,-532.00740135,0.00014598,2]
[421733815,1778077832000,-500.0,0.00014598,2]
[421733813,1778077832000,-500.0,0.00014598,2]
[421733820,1778077832000,-500.0,0.00014598,2]
[421733817,1778077832000,-500.0,0.00014598,2]
[421733821,1778077832000,-500.0,0.00014598,2]
[421733811,1778077832000,-500.0,0.00014598,2]
[421733843,1778077833000,-166.66,0.00014765,2]
[421733842,1778077833000,-197.90691566,0.00014699,2]
[421733838,1778077833000,-500.0,0.00014598,2]
[421733841,1778077833000,-1394.89,0.00014608,2]
[421733840,1778077833000,-251.9928363,0.00014598,2]
[421733839,1778077833000,-500.0,0.00014598,2]
[421733844,1778077833000,-1182.42,0.00014889,2]
[421733837,1778077833000,-500.0,0.00014598,2]
[421733850,1778077833000,-170.65,0.00014917,2]
[421733848,1778077833000,-155.31595111,0.000149,2]
[421733846,1778077833000,-920.13711566,0.000149,2]
[421733849,1778077833000,-185.49069389,0.000149,2]
[421733845,1778077833000,-412.63698045,0.000149,2]
[421733847,1778077833000,-154.41572871,0.000149,2]
[421733853,1778077833000,-325.25947291,0.00015,2]
[421733851,1778077833000,-150.0,0.0001499,2]
[421733852,1778077833000,-69383.81197066,0.00015,2]
[421733872,1778077838000,-669.9034207,0.00015,2]
[421733870,1778077838000,-500.0,0.00014598,2]
[421733871,1778077838000,-251.9928363,0.00014598,2]
[421733875,1778077838000,-380.52932165,0.00015,2]
[421733874,1778077838000,-26275.76890073,0.00015,2]
[421733873,1778077838000,-4083.55,0.00015,2]
[421734090,1778077840000,-529.56000952,0.00015,2]
[421734092,1778077840000,-376.57637934,0.00015,2]
[421734096,1778077840000,-1488.87629751,0.00015,2]
[421734087,1778077840000,-580.80823926,0.00015,2]
[421734117,1778077840000,-1685.024,0.00015,2]
[421734328,1778077843000,-61057.09150539,0.00015,2]
[421734327,1778077843000,-258.11923804,0.00015,2]
[421734326,1778077843000,-32.71553922,0.00015,2]
[421734330,1778077845000,-2040.1,0.00015,2]
[421734331,1778077845000,-1058.1,0.00015,2]
[421734333,1778077846000,-999.24758218,0.00015,2]
[421734332,1778077846000,-2846.19817356,0.00015,2]
[421734376,1778078475000,4487.495839,0.0002254,120]
[421734377,1778078705000,2243.74792,0.0002205,120]
[421734387,1778079031000,-253.23,0.00013865,2]
[421734388,1778079031000,-200.0,0.00013888,2]
[421734402,1778079032000,-999.32278774,0.00014598,2]
[421734404,1778079032000,-167.62,0.00014677,2]
[421734401,1778079032000,-1836.40953328,0.00014598,2]
[421734399,1778079032000,-211.56,0.00014469,2]
[421734406,1778079032000,-889.73795982,0.000147,3]
[421734407,1778079032000,-340.48204018,0.000147,2]
[421734398,1778079032000,-2000.0,0.0001444,2]
[421734397,1778079032000,-1200.0,0.00014439,2]
[421734393,1778079032000,-2468.05833915,0.00014004,2]
[421734392,1778079032000,-2869.22052919,0.00014004,2]
[421734403,1778079032000,-134.29595618,0.00014598,2]
[421734394,1778079032000,-161.32113166,0.00014004,2]
[421734390,1778079032000,-167.62,0.00013943,2]
[421734391,1778079032000,-169.33,0.00013998,2]
[421734389,1778079032000,-150.0,0.00013938,2]
[421734396,1778079032000,-167.62,0.0001431,2]
[421734395,1778079032000,-500.0,0.0001403,2]
[421734400,1778079032000,-300.0,0.00014596,2]
[421734422,1778079032000,-7375.03292066,0.000148,2]
[421734410,1778079032000,-85081.24807983,0.000147,2]
[421734420,1778079032000,-303.27109634,0.00014799,2]
[421734421,1778079032000,-150.0,0.00014799,2]
[421734424,1778079032000,-13016.36995088,0.000148,2]
[421734425,1778079032000,-335.31456548,0.000148,2]
[421734423,1778079032000,-48925.64120756,0.000148,2]
[421734419,1778079032000,-576.05318447,0.00014799,2]
[421734417,1778079032000,-500.0,0.00014799,2]
[421734416,1778079032000,-150.0,0.00014799,2]
[421734426,1778079032000,-1299.03109547,0.000148,2]
[421734414,1778079032000,-154.41572871,0.00014773,2]
[421734418,1778079032000,-222.40518095,0.00014799,2]
[421734411,1778079032000,-1465.78,0.00014703,2]
[421734409,1778079032000,-259.37939,0.000147,2]
[421734405,1778079032000,-4136.09081705,0.000147,3]
[421734413,1778079032000,-1895.68900909,0.0001475,2]
[421734412,1778079032000,-3933.97,0.00014729,2]
[421734415,1778079032000,-155.57864443,0.0001479,2]
[421734408,1778079032000,-760.97418999,0.000147,2]
[421734429,1778079038000,-26275.76890073,0.000148,2]
[421734431,1778079038000,-2139.189021,0.000148,2]
[421734430,1778079038000,-380.52932165,0.000148,2]
[421734432,1778079038000,-637.55172502,0.000148,2]
[421734433,1778079038000,-527.82848538,0.000148,2]
[421734435,1778079038000,-8539.3814926,0.000148,2]
[421734436,1778079038000,-320.22045128,0.000148,2]
[421734439,1778079038000,-300.72668511,0.000148,2]
[421734434,1778079038000,-287.49999999,0.000148,2]
[421734437,1778079038000,-996.93,0.000148,2]
[421734649,1778079040000,-901.01,0.000148,2]
[421734648,1778079040000,-2046.775,0.000148,2]
[421734642,1778079040000,-7314.64809695,0.000148,2]
[421734666,1778079043000,-282.36355332,0.000148,2]
[421734667,1778079043000,-438.96615042,0.000148,2]
[421734668,1778079043000,-16084.09543904,0.000148,2]
[421734682,1778079046000,-899.5,0.000148,2]
[421734680,1778079046000,-489.43218081,0.000148,2]
[421734681,1778079046000,-4148.66896823,0.000148,2]
[421734679,1778079046000,-250.0,0.000148,2]
[421734678,1778079046000,-37545.84914728,0.000148,2]
[421734677,1778079046000,-5164.7201628,0.000148,2]
[421734676,1778079046000,-485.95411233,0.000148,2]
[421734730,1778079097000,15452.053076,0.00022089,120]
[421734737,1778079106000,-128544.37159506,0.000148,2]
[421734736,1778079106000,-316.98020239,0.000148,2]
[421734734,1778079106000,-391.24125144,0.00014799,2]
[421734735,1778079106000,-150.0,0.00014799,2]
[421734733,1778079106000,-155.31595111,0.00014773,2]
[421734732,1778079106000,-177.372,0.00014504,2]
[421734731,1778079106000,-1264.719,0.00014504,2]
[421734738,1778079230000,152.0,0.00015292,7]
[421734739,1778079231000,152.0,0.00015297,7]
[421734740,1778079232000,152.0,0.00015297,30]
[421734741,1778079512000,10000.0,0.00030137,120]
[421734742,1778079528000,152.0,0.00016588,7]
[421734743,1778079610000,333.0,0.00029452,120]
[421734744,1778079653000,150.0,0.00015013,21]
[421734746,1778079751000,150.1,0.00030136,120]
[421734747,1778079814000,1100.0,0.00015,14]
[421734748,1778079826000,152.0,0.00015727,7]
[421734753,1778079936000,17316.01661235,0.000107,2]
[421734752,1778079936000,953.60641039,0.000107,2]
[421734751,1778079936000,656.57896174,0.000107,2]
[421734756,1778080160000,-5348.64225625,0.00013249,2]
[421734759,1778080172000,-260.96,0.00013286,2]
[421734760,1778080172000,-150.0,0.00013286,2]
[421734758,1778080172000,-1129.56774375,0.00013249,2]
[421734761,1778080172000,-300.0,0.00013304,2]
[421734763,1778080172000,-648.96989046,0.00013324,2]
[421734762,1778080172000,-22908.6,0.00013305,2]
[421734764,1778080183000,290.84,0.0002963,120]
[421734765,1778080191000,199.84,6.908e-05,2]
[421734800,1778080232000,-250.0,0.00013809,2]
[421734796,1778080232000,-150.0,0.00013675,2]
[421734802,1778080232000,-200.0,0.00013819,2]
[421734803,1778080232000,-500.0,0.00013838,2]
[421734806,1778080232000,-150.0,0.00013895,2]
[421734805,1778080232000,-204.5796,0.00013895,2]
[421734808,1778080232000,-3408.99,0.00013995,2]
[421734813,1778080232000,-1712.89,0.00014086,2]
[421734810,1778080232000,-152.37,0.00014034,2]
[421734804,1778080232000,-150.0,0.00013862,2]
[421734801,1778080232000,-199.84,0.00013815,2]
[421734809,1778080232000,-250.0,0.00014,2]
[421734807,1778080232000,-579.79,0.00013896,2]
[421734811,1778080232000,-150.0,0.0001405,2]
[421734817,1778080232000,-150.0,0.00014237,2]
[421734819,1778080232000,-150.0,0.00014237,2]
[421734821,1778080232000,-150.0,0.00014237,2]
[421734815,1778080232000,-500.0,0.00014111,2]
[421734798,1778080232000,-737.74675597,0.00013756,2]
[421734793,1778080232000,-1769.0,0.00013506,2]
[421734823,1778080232000,-167.05,0.00014295,2]
[421734778,1778080232000,-1203.45010954,0.00013324,2]
[421734780,1778080232000,-4495.2,0.00013465,2]
[421734779,1778080232000,-1712.89,0.00013415,2]
[421734784,1778080232000,-150.0,0.00013488,2]
[421734782,1778080232000,-1200.0,0.00013487,2]
[421734783,1778080232000,-150.0,0.00013488,2]
[421734781,1778080232000,-300.0,0.00013487,2]
[421734787,1778080232000,-151.05845012,0.00013488,2]
[421734785,1778080232000,-150.0,0.00013488,2]
[421734789,1778080232000,-150.0,0.00013488,2]
[421734786,1778080232000,-151.08512299,0.00013488,2]
[421734788,1778080232000,-150.0,0.00013488,2]
[421734790,1778080232000,-150.0,0.00013488,2]
[421734791,1778080232000,-150.0,0.00013488,2]
[421734794,1778080232000,-166.15,0.00013666,2]
[421734792,1778080232000,-159.14,0.00013493,2]
[421734797,1778080232000,-1712.89,0.0001375,2]
[421734795,1778080232000,-200.0,0.00013669,2]
[421734829,1778080232000,-150.0,0.00014424,2]
[421734799,1778080232000,-67.80324403,0.00013756,2]
[421734831,1778080232000,-2000.0,0.0001444,2]
[421734889,1778080232000,-500.0,0.00014479,2]
[421734900,1778080232000,-500.0,0.00014479,2]
[421734885,1778080232000,-500.0,0.00014479,2]
[421734887,1778080232000,-500.0,0.00014479,2]
[421734896,1778080232000,-500.0,0.00014479,2]
[421734891,1778080232000,-500.0,0.00014479,2]
[421734902,1778080232000,-500.0,0.00014479,2]
[421734905,1778080232000,-500.0,0.00014479,2]
[421734894,1778080232000,-500.0,0.00014479,2]
[421734906,1778080232000,-150.0,0.00014479,2]
[421734911,1778080232000,-500.0,0.00014479,2]
[421734917,1778080232000,-500.0,0.00014479,2]
[421734909,1778080232000,-500.0,0.00014479,2]
[421734919,1778080232000,-500.0,0.00014479,2]
[421734916,1778080232000,-500.0,0.00014479,2]
[421734915,1778080232000,-500.0,0.00014479,2]
[421734825,1778080232000,-1712.89,0.00014421,2]
[421734913,1778080232000,-500.0,0.00014479,2]
[421734918,1778080232000,-500.0,0.00014479,2]
[421734898,1778080232000,-508.0372081,0.00014479,2]
[421734914,1778080232000,-500.0,0.00014479,2]
[421734876,1778080232000,-500.0,0.00014479,2]
[421734882,1778080232000,-500.0,0.00014479,2]
[421734834,1778080232000,-500.0,0.00014479,2]
[421734840,1778080232000,-500.0,0.00014479,2]
[421734846,1778080232000,-500.0,0.00014479,2]
[421734843,1778080232000,-500.0,0.00014479,2]
[421734850,1778080232000,-500.0,0.00014479,2]
[421734853,1778080232000,-500.0,0.00014479,2]
[421734857,1778080232000,-500.0,0.00014479,2]
[421734860,1778080232000,-500.0,0.00014479,2]
[421734837,1778080232000,-500.0,0.00014479,2]
[421734865,1778080232000,-500.0,0.00014479,2]
[421734867,1778080232000,-500.0,0.00014479,2]
[421734874,1778080232000,-500.0,0.00014479,2]
[421734870,1778080232000,-500.0,0.00014479,2]
[421734872,1778080232000,-500.0,0.00014479,2]
[421734880,1778080232000,-500.0,0.00014479,2]
[421734863,1778080232000,-500.0,0.00014479,2]
[421734878,1778080232000,-500.0,0.00014479,2]
[421734938,1778080233000,-8809.06367072,0.00014627,2]
[421734939,1778080233000,-748.54532664,0.00014627,2]
[421734943,1778080233000,-500.0,0.00014699,2]
[421734946,1778080233000,-500.0,0.00014699,2]
[421734944,1778080233000,-500.0,0.00014699,2]
[421734952,1778080233000,-420.0,0.00014783,2]
[421734951,1778080233000,-1712.89,0.00014756,2]
[421734949,1778080233000,-2111.3839425,0.00014753,2]
[421734953,1778080233000,-166.15,0.00014794,2]
[421734947,1778080233000,-500.0,0.00014699,2]
[421734945,1778080233000,-500.0,0.00014699,2]
[421734954,1778080233000,-150.0,0.00014799,2]
[421734955,1778080233000,-162.25155651,0.000148,2]
[421734956,1778080233000,-300.0,0.00014811,2]
[421734937,1778080233000,-150.0,0.00014612,2]
[421734960,1778080233000,-285.18294388,0.000149,2]
[421734950,1778080233000,-6876.6980233,0.00014753,2]
[421734941,1778080233000,-146.36812664,0.00014672,2]
[421734926,1778080233000,-635.42871133,0.00014479,2]
[421734940,1778080233000,-20.68187336,0.00014672,2]
[421734961,1778080233000,-498.43597616,0.000149,2]
[421734921,1778080233000,-500.0,0.00014479,2]
[421734920,1778080233000,-500.0,0.00014479,2]
[421734923,1778080233000,-500.0,0.00014479,2]
[421734932,1778080233000,-293.81657104,0.000146,2]
[421734922,1778080233000,-500.0,0.00014479,2]
[421734924,1778080233000,-500.0,0.00014479,2]
[421734928,1778080233000,-1201.936,0.000145,2]
[421734929,1778080233000,-179.12,0.000145,2]
[421734930,1778080233000,-250.0,0.00014574,2]
[421734927,1778080233000,-493.40619236,0.00014479,2]
[421734925,1778080233000,-500.0,0.00014479,2]
[421734931,1778080233000,-31245.0377,0.000146,2]
[421734933,1778080233000,-601.07842018,0.000146,2]
[421734934,1778080233000,-908.34026932,0.000146,2]
[421734936,1778080233000,-757.76182069,0.000146,2]
[421734935,1778080233000,-960.77059224,0.000146,2]
[421734942,1778080233000,-500.0,0.00014699,2]
[421734958,1778080233000,-159.61374998,0.00014848,2]
[421734948,1778080233000,-7417.0246529,0.00014727,2]
[421734963,1778080233000,-3257.76232686,0.000149,2]
[421734982,1778080233000,-500.0,0.00014999,2]
[421734980,1778080233000,-500.0,0.00014999,2]
[421734985,1778080233000,-500.0,0.00014999,2]
[421734987,1778080233000,-500.0,0.00014999,2]
[421734986,1778080233000,-500.0,0.00014999,2]
[421734988,1778080233000,-212.28976744,0.00014999,2]
[421734989,1778080233000,-505.68362666,0.00014999,2]
[421734990,1778080233000,-403.23722913,0.00014999,2]
[421734991,1778080233000,-300.0,0.00014999,2]
[421734995,1778080233000,-66044.6886892,0.00015,2]
[421734996,1778080233000,-8053.07254739,0.00015,2]
[421734993,1778080233000,-26206.9998136,0.00015,2]
[421734997,1778080233000,-1873.69118943,0.00015,2]
[421734992,1778080233000,-1022.0,0.00015,5]
[421734994,1778080233000,-2716.55805565,0.00015,2]
[421734999,1778080233000,-2012.78354579,0.00015,2]
[421734964,1778080233000,-200.12842738,0.000149,2]
[421734984,1778080233000,-500.0,0.00014999,2]
[421734981,1778080233000,-500.0,0.00014999,2]
[421734983,1778080233000,-500.0,0.00014999,2]
[421734979,1778080233000,-500.0,0.00014999,2]
[421734957,1778080233000,-1680.0,0.00014835,2]
[421734962,1778080233000,-219.73555758,0.000149,2]
[421734959,1778080233000,-9557.60899733,0.0001488,2]
[421734965,1778080233000,-1846.70440888,0.000149,2]
[421734966,1778080233000,-5088.27358156,0.000149,2]
[421734978,1778080233000,-500.0,0.00014999,2]
[421734968,1778080233000,-500.0,0.00014973,2]
[421734969,1778080233000,-279.22,0.00014985,2]
[421734973,1778080233000,-150.0,0.00014986,2]
[421734967,1778080233000,-7025.8096413,0.0001495,2]
[421734970,1778080233000,-150.0,0.00014986,2]
[421734998,1778080233000,-2247.63760254,0.00015,2]
[421734972,1778080233000,-150.0,0.00014986,2]
[421734975,1778080233000,-150.0,0.00014999,2]
[421734976,1778080233000,-500.0,0.00014999,2]
[421734974,1778080233000,-259.16287403,0.00014986,2]
[421734977,1778080233000,-500.0,0.00014999,2]
[421734971,1778080233000,-150.55122366,0.00014986,2]
[421735019,1778080238000,-606.67261385,0.00014989,2]
[421735017,1778080238000,-500.0,0.00014989,2]
[421735018,1778080238000,-500.0,0.00014989,2]
[421735014,1778080238000,-580.7461371,0.00014716,2]
[421735013,1778080238000,-1000.0,0.00014479,2]
[421735015,1778080238000,-500.0,0.00014989,2]
[421735020,1778080238000,-500.0,0.00014989,2]
[421735016,1778080238000,-500.0,0.00014989,2]
[421735022,1778080238000,-500.0,0.00014989,2]
[421735029,1778080238000,-500.0,0.00014989,2]
[421735023,1778080238000,-500.0,0.00014989,2]
[421735027,1778080238000,-500.0,0.00014989,2]
[421735025,1778080238000,-500.0,0.00014989,2]
[421735024,1778080238000,-500.0,0.00014989,2]
[421735028,1778080238000,-500.0,0.00014989,2]
[421735026,1778080238000,-500.0,0.00014989,2]
[421735030,1778080238000,-500.0,0.00014989,2]
[421735031,1778080238000,-16588.35014978,0.00015,2]
[421735021,1778080238000,-500.0,0.00014989,2]
[421735032,1778080238000,-380.52932165,0.00015,2]
[421735050,1778080240000,-500.0,0.00015014,2]
[421735052,1778080240000,-500.0,0.00015014,2]
[421735047,1778080240000,-151.0,0.00015,2]
[421735065,1778080240000,-556.0,0.00015014,2]
[421735063,1778080240000,-556.0,0.00015014,2]
[421735054,1778080240000,-500.0,0.00015014,2]
[421735053,1778080240000,-500.0,0.00015014,2]
[421735057,1778080240000,-500.0,0.00015014,2]
[421735049,1778080240000,-500.0,0.00015014,2]
[421735051,1778080240000,-500.0,0.00015014,2]
[421735043,1778080240000,-151.0,0.00015,2]
[421735045,1778080240000,-153.968219,0.00015,2]
[421735046,1778080240000,-151.0,0.00015,2]
[421735044,1778080240000,-151.0,0.00015,2]
[421735040,1778080240000,-427.32868405,0.00015,2]
[421735041,1778080240000,-3401985.01857133,0.00015,2]
[421735042,1778080240000,-151.0,0.00015,2]
[421735039,1778080240000,-3129.04007872,0.00015,2]
[421735038,1778080240000,-2073.9690073,0.00015,2]
[421735037,1778080240000,-695393.47959591,0.00015,2]
[421735062,1778080240000,-556.0,0.00015014,2]
[421735048,1778080240000,-151.0,0.00015,2]
[421735056,1778080240000,-500.0,0.00015014,2]
[421735077,1778080240000,-556.0,0.00015014,2]
[421735055,1778080240000,-500.0,0.00015014,2]
[421735064,1778080240000,-556.0,0.00015014,2]
[421735083,1778080240000,-556.0,0.00015014,2]
[421735081,1778080240000,-556.0,0.00015014,2]
[421735079,1778080240000,-556.0,0.00015014,2]
[421735080,1778080240000,-556.0,0.00015014,2]
[421735078,1778080240000,-556.0,0.00015014,2]
[421735076,1778080240000,-556.0,0.00015014,2]
[421735072,1778080240000,-556.0,0.00015014,2]
[421735075,1778080240000,-556.0,0.00015014,2]
[421735074,1778080240000,-556.0,0.00015014,2]
[421735082,1778080240000,-556.0,0.00015014,2]
[421735070,1778080240000,-556.0,0.00015014,2]
[421735071,1778080240000,-556.0,0.00015014,2]
[421735068,1778080240000,-556.0,0.00015014,2]
[421735069,1778080240000,-556.0,0.00015014,2]
[421735066,1778080240000,-556.0,0.00015014,2]
[421735067,1778080240000,-556.0,0.00015014,2]
[421735060,1778080240000,-526.04399101,0.00015014,2]
[421735059,1778080240000,-509.972563,0.00015014,2]
[421735058,1778080240000,-500.0,0.00015014,2]
[421735061,1778080240000,-556.0,0.00015014,2]
[421735073,1778080240000,-556.0,0.00015014,2]
[421735116,1778080241000,-338.213818,0.00016327,2]
[421735115,1778080241000,-1175.0,0.00016319,2]
[421735117,1778080241000,-169.33,0.00016331,2]
[421735111,1778080241000,-3257.76232678,0.00016233,2]
[421735118,1778080241000,-151.0,0.00016388,2]
[421735108,1778080241000,-300.0,0.00016,2]
[421735114,1778080241000,-2000.0,0.00016245,2]
[421735113,1778080241000,-151.0,0.00016238,2]
[421735119,1778080241000,-151.0,0.00016388,2]
[421735131,1778080241000,-213.019963,0.00016438,2]
[421735122,1778080241000,-9557.60899733,0.00016395,2]
[421735129,1778080241000,-500.0,0.00016438,2]
[421735123,1778080241000,-1370.7,0.00016438,2]
[421735125,1778080241000,-150.0,0.00016438,2]
[421735134,1778080241000,-213.019963,0.00016438,2]
[421735127,1778080241000,-500.0,0.00016438,2]
[421735142,1778080241000,-213.019963,0.00016438,2]
[421735140,1778080241000,-213.019963,0.00016438,2]
[421735110,1778080241000,-350.0,0.00016225,2]
[421735121,1778080241000,-518.58739321,0.00016388,2]
[421735109,1778080241000,-9557.60899733,0.00016142,2]
[421735144,1778080241000,-1468.57,0.00016474,2]
[421735107,1778080241000,-166.15,0.00015922,2]
[421735088,1778080241000,-151.0,0.00015068,2]
[421735087,1778080241000,-151.0,0.00015068,2]
[421735086,1778080241000,-167.05,0.00015048,2]
[421735090,1778080241000,-9557.60899733,0.00015132,2]
[421735089,1778080241000,-182.23,0.00015105,2]
[421735084,1778080241000,-560.64148746,0.00015014,2]
[421735085,1778080241000,-255.0,0.0001502,2]
[421735092,1778080241000,-3257.76232678,0.00015233,2]
[421735091,1778080241000,-358.66,0.00015211,2]
[421735112,1778080241000,-151.0,0.00016238,2]
[421735093,1778080241000,-9557.60899733,0.00015385,2]
[421735102,1778080241000,-9557.60899733,0.00015637,2]
[421735095,1778080241000,-445.42301396,0.0001543,2]
[421735104,1778080241000,-167.05,0.000158,2]
[421735103,1778080241000,-159.14,0.00015741,2]
[421735096,1778080241000,-192.0,0.00015507,2]
[421735097,1778080241000,-502.05177941,0.00015521,2]
[421735100,1778080241000,-579.79,0.00015633,2]
[421735094,1778080241000,-167.05,0.00015424,2]
[421735099,1778080241000,-3257.76232678,0.00015567,2]
[421735106,1778080241000,-3257.76232678,0.000159,2]
[421735146,1778080241000,-1711.15,0.00016474,2]
[421735105,1778080241000,-9557.60899733,0.0001589,2]
[421735147,1778080241000,-15534.12,0.00016474,2]
[421735174,1778080241000,-162.59148893,0.00016973,2]
[421735168,1778080241000,-500.0,0.00016973,2]
[421735175,1778080241000,-150.0,0.00016973,2]
[421735177,1778080241000,-500.0,0.00016973,2]
[421735176,1778080241000,-500.0,0.00016973,2]
[421735180,1778080241000,-195.85164586,0.00016973,2]
[421735178,1778080241000,-500.0,0.00016973,2]
[421735186,1778080241000,-743.57107582,0.00016986,2]
[421735185,1778080241000,-175.80035316,0.00016986,2]
[421735169,1778080241000,-186.53575633,0.00016973,2]
[421735179,1778080241000,-565.62994908,0.00016973,2]